[Event "*** SCC Grand Prix: Titled Tuesday Blitz"]
[Site "Chess.com"]
[Date "2020.06.23"]
[Round "1"]
[White "pedromartinez91"]
[Black "sertalzin"]
[Result "1-0"]
[WhiteElo "2501"]
[BlackElo "2019"]
[TimeControl "180+1"]
[EndTime "10:06:58 PDT"]
[Termination "pedromartinez91 won on time"]

1. e4 {[%clk 0:02:56.3]} 1... c6 {[%clk 0:02:58.9]} 2. d4 {[%clk 0:02:55.5]}
2... d5 {[%clk 0:02:58.7]} 3. Nc3 {[%clk 0:02:55.4]} 3... dxe4 {[%clk
0:02:57.7]} 4. Nxe4 {[%clk 0:02:56]} 4... Nf6 {[%clk 0:02:57.2]} 5. Nxf6+ {[%clk
0:02:55.6]} 5... exf6 {[%clk 0:02:56.3]} 6. Bc4 {[%clk 0:02:55.7]} 6... Bd6
{[%clk 0:02:56]} 7. Qe2+ {[%clk 0:02:55.8]} 7... Qe7 {[%clk 0:02:54.9]} 8. Qxe7+
{[%clk 0:02:54]} 8... Kxe7 {[%clk 0:02:53.8]} 9. Ne2 {[%clk 0:02:53.1]} 9... Re8
{[%clk 0:02:52.3]} 10. Bf4 {[%clk 0:02:48.1]} 10... Be6 {[%clk 0:02:50.4]} 11.
Bd3 {[%clk 0:02:41.3]} 11... g6 {[%clk 0:02:43.1]} 12. O-O {[%clk 0:02:35.2]}
12... Na6 {[%clk 0:02:38.7]} 13. Bxa6 {[%clk 0:02:29]} 13... bxa6 {[%clk
0:02:37.2]} 14. Bxd6+ {[%clk 0:02:22]} 14... Kxd6 {[%clk 0:02:35.7]} 15. Rfe1
{[%clk 0:02:22.2]} 15... Rab8 {[%clk 0:02:33.2]} 16. b3 {[%clk 0:02:19.6]} 16...
a5 {[%clk 0:02:32.4]} 17. Nc3 {[%clk 0:02:14.3]} 17... Bf5 {[%clk 0:02:17.7]}
18. Rec1 {[%clk 0:01:56.2]} 18... Re7 {[%clk 0:02:11.3]} 19. f3 {[%clk
0:01:50.7]} 19... g5 {[%clk 0:01:53.9]} 20. Kf2 {[%clk 0:01:47.5]} 20... Rbe8
{[%clk 0:01:51.8]} 21. Re1 {[%clk 0:01:16.5]} 21... Rxe1 {[%clk 0:01:47.6]} 22.
Rxe1 {[%clk 0:01:17.4]} 22... Rxe1 {[%clk 0:01:46.6]} 23. Kxe1 {[%clk
0:01:18.3]} 23... Bxc2 {[%clk 0:01:45.5]} 24. Kd2 {[%clk 0:01:18.6]} 24... Bf5
{[%clk 0:01:39.6]} 25. Ke3 {[%clk 0:01:18.1]} 25... Be6 {[%clk 0:01:22.3]} 26.
Ne4+ {[%clk 0:01:16.2]} 26... Ke7 {[%clk 0:01:20.2]} 27. Nc5 {[%clk 0:01:15.9]}
27... Bd5 {[%clk 0:01:13.1]} 28. g3 {[%clk 0:01:07.5]} 28... f5 {[%clk
0:01:10.6]} 29. f4 {[%clk 0:01:07.5]} 29... f6 {[%clk 0:01:08.1]} 30. Kd3 {[%clk
0:00:59.6]} 30... h5 {[%clk 0:00:57.1]} 31. h4 {[%clk 0:00:58.7]} 31... gxh4
{[%clk 0:00:52.5]} 32. gxh4 {[%clk 0:00:58.6]} 32... Kf7 {[%clk 0:00:15.9]} 33.
a3 {[%clk 0:00:53.3]} 33... Ke7 {[%clk 0:00:14.1]} 34. Kc3 {[%clk 0:00:53.2]}
34... Kf7 {[%clk 0:00:12.3]} 35. Nb7 {[%clk 0:00:53.1]} 35... a4 {[%clk
0:00:10.5]} 36. b4 {[%clk 0:00:52.2]} 36... Ke7 {[%clk 0:00:07]} 37. Nc5 {[%clk
0:00:52.1]} 37... Kd6 {[%clk 0:00:03.1]} 38. Nxa4 {[%clk 0:00:47.4]} 38... Kc7
{[%clk 0:00:01.2]} 39. Nc5 {[%clk 0:00:43.2]} 1-0

[Event "*** SCC Grand Prix: Titled Tuesday Blitz"]
[Site "Chess.com"]
[Date "2020.06.23"]
[Round "1"]
[White "Yuri202062"]
[Black "Alexander_Moskalenko"]
[Result "0-1"]
[WhiteElo "2431"]
[BlackElo "2844"]
[TimeControl "180+1"]
[EndTime "10:07:00 PDT"]
[Termination "Alexander_Moskalenko won on time"]

1. d4 {[%clk 0:03:00.9]} 1... e6 {[%clk 0:02:56.7]} 2. c4 {[%clk 0:03:00.1]}
2... d5 {[%clk 0:02:56.9]} 3. Nc3 {[%clk 0:02:59.3]} 3... Nf6 {[%clk 0:02:53.9]}
4. cxd5 {[%clk 0:02:58.5]} 4... Nxd5 {[%clk 0:02:52.8]} 5. e4 {[%clk 0:02:58.2]}
5... Nxc3 {[%clk 0:02:53.1]} 6. bxc3 {[%clk 0:02:58.1]} 6... c5 {[%clk 0:02:54]}
7. Rb1 {[%clk 0:02:55.6]} 7... Be7 {[%clk 0:02:46.2]} 8. Nf3 {[%clk 0:02:54.8]}
8... O-O {[%clk 0:02:44.7]} 9. h4 {[%clk 0:02:54.5]} 9... b6 {[%clk 0:02:37.8]}
10. h5 {[%clk 0:02:53.5]} 10... h6 {[%clk 0:02:37.3]} 11. Bd3 {[%clk 0:02:41.9]}
11... Bb7 {[%clk 0:02:23.2]} 12. Rh3 {[%clk 0:02:40.6]} 12... Nd7 {[%clk
0:01:53]} 13. Rg3 {[%clk 0:02:29.6]} 13... Kh8 {[%clk 0:01:53.3]} 14. Qd2 {[%clk
0:02:12.1]} 14... Rg8 {[%clk 0:01:50.3]} 15. Qf4 {[%clk 0:01:45.9]} 15... Nf6
{[%clk 0:01:41.7]} 16. Ne5 {[%clk 0:01:45.5]} 16... Qe8 {[%clk 0:01:39.9]} 17.
Qf3 {[%clk 0:01:32]} 17... Rd8 {[%clk 0:01:33.2]} 18. Be3 {[%clk 0:01:31.5]}
18... Bd6 {[%clk 0:01:03.5]} 19. Bxh6 {[%clk 0:01:24]} 19... Bxe5 {[%clk
0:01:02.4]} 20. dxe5 {[%clk 0:01:23.1]} 20... Rxd3 {[%clk 0:01:03]} 21. Qxd3
{[%clk 0:01:12]} 21... Nxe4 {[%clk 0:01:01.7]} 22. Re3 {[%clk 0:01:00.3]} 22...
Qa4 {[%clk 0:00:27.9]} 23. Bf4 {[%clk 0:00:47.9]} 23... Nxc3 {[%clk 0:00:25.3]}
24. Qxc3 {[%clk 0:00:43.5]} 24... Qxf4 {[%clk 0:00:25.1]} 25. f3 {[%clk
0:00:36]} 25... Rd8 {[%clk 0:00:21.7]} 26. Rd1 {[%clk 0:00:31]} 26... Qg3+
{[%clk 0:00:20]} 27. Kf1 {[%clk 0:00:06.7]} 27... Rxd1+ {[%clk 0:00:19.3]} 28.
Ke2 {[%clk 0:00:06.8]} 28... Rd8 {[%clk 0:00:18.8]} 29. Kf1 {[%clk 0:00:05.8]}
29... Ba6+ {[%clk 0:00:17.4]} 0-1

[Event "*** SCC Grand Prix: Titled Tuesday Blitz"]
[Site "Chess.com"]
[Date "2020.06.23"]
[Round "1"]
[White "Fusikk"]
[Black "HanSchut"]
[Result "1-0"]
[WhiteElo "2558"]
[BlackElo "2211"]
[TimeControl "180+1"]
[EndTime "10:07:00 PDT"]
[Termination "Fusikk won on time"]

1. e4 {[%clk 0:02:56.3]} 1... c5 {[%clk 0:02:59.8]} 2. Nf3 {[%clk 0:02:56.2]}
2... d6 {[%clk 0:03:00.3]} 3. Bb5+ {[%clk 0:02:55.5]} 3... Nd7 {[%clk
0:02:59.8]} 4. O-O {[%clk 0:02:54.7]} 4... a6 {[%clk 0:02:59.5]} 5. Bd3 {[%clk
0:02:54.1]} 5... b5 {[%clk 0:02:57.6]} 6. c3 {[%clk 0:02:52.4]} 6... Bb7 {[%clk
0:02:57]} 7. Re1 {[%clk 0:02:51.2]} 7... Ngf6 {[%clk 0:02:54.7]} 8. a4 {[%clk
0:02:51.1]} 8... c4 {[%clk 0:02:37.7]} 9. Bc2 {[%clk 0:02:43]} 9... g6 {[%clk
0:02:23.4]} 10. Na3 {[%clk 0:02:29.6]} 10... Qb6 {[%clk 0:02:12.2]} 11. d4
{[%clk 0:02:13.9]} 11... cxd3 {[%clk 0:02:10.6]} 12. Bxd3 {[%clk 0:02:10.2]}
12... Bc6 {[%clk 0:01:50.1]} 13. Be3 {[%clk 0:02:04.3]} 13... Qb7 {[%clk
0:01:45.8]} 14. axb5 {[%clk 0:01:57.1]} 14... axb5 {[%clk 0:01:45.9]} 15. Nd4
{[%clk 0:01:56.6]} 15... Bxe4 {[%clk 0:01:39.8]} 16. Bxe4 {[%clk 0:01:52.1]}
16... Nxe4 {[%clk 0:01:34.5]} 17. Naxb5 {[%clk 0:01:52]} 17... Rxa1 {[%clk
0:01:31.5]} 18. Qxa1 {[%clk 0:01:52.1]} 18... Bg7 {[%clk 0:01:25.6]} 19. f3
{[%clk 0:01:39.4]} 19... Nef6 {[%clk 0:01:21.1]} 20. Bh6 {[%clk 0:01:22.2]}
20... O-O {[%clk 0:00:34.1]} 21. Bxg7 {[%clk 0:01:21.4]} 21... Kxg7 {[%clk
0:00:35]} 22. Rxe7 {[%clk 0:01:21.5]} 22... Ra8 {[%clk 0:00:32.2]} 23. Qe1
{[%clk 0:01:18.4]} 23... Qb6 {[%clk 0:00:32.3]} 24. Nc7 {[%clk 0:00:51.4]} 24...
Ra2 {[%clk 0:00:14.6]} 25. b4 {[%clk 0:00:33.9]} 25... Ne5 {[%clk 0:00:10.7]}
26. h3 {[%clk 0:00:27.5]} 26... h5 {[%clk 0:00:05.9]} 27. f4 {[%clk 0:00:27.4]}
27... Nc4 {[%clk 0:00:05.6]} 28. Qe6 {[%clk 0:00:25]} 28... Rxg2+ {[%clk
0:00:01.4]} 29. Kxg2 {[%clk 0:00:23.1]} 29... Qb7+ {[%clk 0:00:01.9]} 30. Kg1
{[%clk 0:00:21]} 30... Qd5 {[%clk 0:00:02.3]} 31. Rxf7+ {[%clk 0:00:19.7]} 31...
Kh6 {[%clk 0:00:02.6]} 32. Nxd5 {[%clk 0:00:19.6]} 1-0

[Event "*** SCC Grand Prix: Titled Tuesday Blitz"]
[Site "Chess.com"]
[Date "2020.06.23"]
[Round "1"]
[White "KyrgyzFighter"]
[Black "Arkady_Gitelson"]
[Result "1-0"]
[WhiteElo "2271"]
[BlackElo "2564"]
[TimeControl "180+1"]
[EndTime "10:07:01 PDT"]
[Termination "KyrgyzFighter won by resignation"]

1. c4 {[%clk 0:02:43.8]} 1... g6 {[%clk 0:02:58.5]} 2. Nc3 {[%clk 0:02:44]} 2...
Bg7 {[%clk 0:02:58.6]} 3. d4 {[%clk 0:02:44.9]} 3... d6 {[%clk 0:02:58.4]} 4. e4
{[%clk 0:02:45.2]} 4... Nf6 {[%clk 0:02:58.5]} 5. f3 {[%clk 0:02:45.6]} 5... O-O
{[%clk 0:02:58.4]} 6. Be3 {[%clk 0:02:44.8]} 6... Nc6 {[%clk 0:02:58.4]} 7. Qd2
{[%clk 0:02:44.6]} 7... a6 {[%clk 0:02:57.8]} 8. Rc1 {[%clk 0:02:44.7]} 8... Bd7
{[%clk 0:02:53.1]} 9. Nge2 {[%clk 0:02:42.3]} 9... e5 {[%clk 0:02:48.7]} 10. d5
{[%clk 0:02:41]} 10... Ne7 {[%clk 0:02:47.8]} 11. g4 {[%clk 0:02:38.2]} 11... h5
{[%clk 0:02:45.2]} 12. gxh5 {[%clk 0:02:37.7]} 12... Nxh5 {[%clk 0:02:44.7]} 13.
Bg2 {[%clk 0:02:38]} 13... f5 {[%clk 0:02:44]} 14. O-O {[%clk 0:02:35.5]} 14...
f4 {[%clk 0:02:42.1]} 15. Bf2 {[%clk 0:02:35.5]} 15... g5 {[%clk 0:02:42.6]} 16.
c5 {[%clk 0:02:35.4]} 16... g4 {[%clk 0:02:40.1]} 17. c6 {[%clk 0:02:34.6]}
17... bxc6 {[%clk 0:02:34.5]} 18. dxc6 {[%clk 0:02:35.5]} 18... Be6 {[%clk
0:02:34.7]} 19. Nd5 {[%clk 0:02:29.2]} 19... Nxd5 {[%clk 0:02:31.9]} 20. exd5
{[%clk 0:02:28.9]} 20... Bf5 {[%clk 0:02:32]} 21. fxg4 {[%clk 0:02:10.4]} 21...
Bxg4 {[%clk 0:02:30.1]} 22. Be4 {[%clk 0:02:10.8]} 22... f3 {[%clk 0:02:08.4]}
23. Ng3 {[%clk 0:02:08.3]} 23... Nf4 {[%clk 0:02:02.6]} 24. Kh1 {[%clk
0:01:47.3]} 24... Qh4 {[%clk 0:01:33.5]} 25. Nf5 {[%clk 0:01:34.2]} 25... Qh3
{[%clk 0:01:26.9]} 26. Ne3 {[%clk 0:01:34.6]} 26... Kf7 {[%clk 0:01:07.1]} 27.
Bg3 {[%clk 0:01:25.9]} 27... Rh8 {[%clk 0:00:25.5]} 28. Nxg4 {[%clk 0:01:16.9]}
28... Qxg3 {[%clk 0:00:24.2]} 29. Bxf3 {[%clk 0:01:11.7]} 29... Rh3 {[%clk
0:00:15.7]} 30. Qa5 {[%clk 0:00:55.5]} 30... Rah8 {[%clk 0:00:11.8]} 31. Qxc7+
{[%clk 0:00:55]} 31... Kg8 {[%clk 0:00:12.1]} 32. Qd8+ {[%clk 0:00:51.9]} 32...
Kh7 {[%clk 0:00:10.6]} 33. Be4+ {[%clk 0:00:51.8]} 33... Ng6 {[%clk 0:00:09.1]}
34. Bxg6+ {[%clk 0:00:47.8]} 34... Kxg6 {[%clk 0:00:06.4]} 35. Qxd6+ {[%clk
0:00:48.7]} 35... Kh7 {[%clk 0:00:06.6]} 36. Qe6 {[%clk 0:00:47.2]} 36... Qh4
{[%clk 0:00:04.7]} 37. c7 {[%clk 0:00:44.1]} 37... Rg8 {[%clk 0:00:05.6]} 38.
c8=Q {[%clk 0:00:43.2]} 38... Rxc8 {[%clk 0:00:06.5]} 39. Rxc8 {[%clk 0:00:43]}
39... Rxh2+ {[%clk 0:00:07.4]} 40. Nxh2 {[%clk 0:00:42.8]} 40... Qe4+ {[%clk
0:00:08.3]} 41. Rf3 {[%clk 0:00:43.2]} 41... Bh6 {[%clk 0:00:09.2]} 42. Rc7+
{[%clk 0:00:42.8]} 1-0

[Event "*** SCC Grand Prix: Titled Tuesday Blitz"]
[Site "Chess.com"]
[Date "2020.06.23"]
[Round "1"]
[White "mbachez"]
[Black "Infernal_XaM"]
[Result "0-1"]
[WhiteElo "2407"]
[BlackElo "2803"]
[TimeControl "180+1"]
[EndTime "10:07:02 PDT"]
[Termination "Infernal_XaM won by resignation"]

1. e4 {[%clk 0:03:00.9]} 1... e5 {[%clk 0:02:59.4]} 2. Nf3 {[%clk 0:03:00.3]}
2... Nc6 {[%clk 0:03:00]} 3. Bb5 {[%clk 0:03:00.2]} 3... Bc5 {[%clk 0:02:58.7]}
4. c3 {[%clk 0:02:58.3]} 4... Bb6 {[%clk 0:02:57.5]} 5. O-O {[%clk 0:02:57.6]}
5... Nf6 {[%clk 0:02:55.6]} 6. d4 {[%clk 0:02:56.2]} 6... Nxe4 {[%clk
0:02:55.4]} 7. Re1 {[%clk 0:02:50.6]} 7... d5 {[%clk 0:02:51.3]} 8. Nxe5 {[%clk
0:02:50.1]} 8... O-O {[%clk 0:02:48]} 9. Nxc6 {[%clk 0:02:42.8]} 9... bxc6
{[%clk 0:02:47.6]} 10. Bxc6 {[%clk 0:02:42.9]} 10... Rb8 {[%clk 0:02:39]} 11.
Ba4 {[%clk 0:02:38.6]} 11... c5 {[%clk 0:02:35.9]} 12. Be3 {[%clk 0:02:34.4]}
12... cxd4 {[%clk 0:02:34.6]} 13. cxd4 {[%clk 0:02:30.4]} 13... Ba5 {[%clk
0:02:20]} 14. Re2 {[%clk 0:02:21]} 14... f5 {[%clk 0:01:33.5]} 15. Bf4 {[%clk
0:02:14.9]} 15... Ba6 {[%clk 0:01:29.1]} 16. Bxb8 {[%clk 0:01:32.6]} 16... Qxb8
{[%clk 0:01:17.3]} 17. Bb3 {[%clk 0:01:26.1]} 17... Bxe2 {[%clk 0:01:10.5]} 18.
Qxe2 {[%clk 0:01:21.2]} 18... Kh8 {[%clk 0:01:01]} 19. f3 {[%clk 0:01:11.6]}
19... Nf6 {[%clk 0:00:48.7]} 20. Nc3 {[%clk 0:01:09.6]} 20... Bc7 {[%clk
0:00:47.8]} 21. g3 {[%clk 0:00:51.2]} 21... Re8 {[%clk 0:00:47.7]} 22. Qf2
{[%clk 0:00:49.7]} 22... f4 {[%clk 0:00:47.9]} 23. g4 {[%clk 0:00:41]} 23... Bb6
{[%clk 0:00:47.8]} 24. Na4 {[%clk 0:00:30.7]} 24... Re3 {[%clk 0:00:44.1]} 25.
Rd1 {[%clk 0:00:30]} 25... h6 {[%clk 0:00:34.6]} 26. Kg2 {[%clk 0:00:26.6]}
26... Qe8 {[%clk 0:00:32.1]} 27. Rd2 {[%clk 0:00:26.4]} 27... Ba5 {[%clk
0:00:28.3]} 28. Rc2 {[%clk 0:00:24.7]} 28... Nxg4 {[%clk 0:00:22.3]} 29. fxg4
{[%clk 0:00:21]} 29... Qe4+ {[%clk 0:00:22.5]} 30. Kf1 {[%clk 0:00:13.3]} 30...
Re1+ {[%clk 0:00:22.2]} 31. Qxe1 {[%clk 0:00:11.1]} 31... Qxe1+ {[%clk
0:00:22.7]} 32. Kg2 {[%clk 0:00:12]} 32... Qe4+ {[%clk 0:00:23.2]} 33. Kf2
{[%clk 0:00:12.3]} 33... Qe3+ {[%clk 0:00:23.5]} 34. Kg2 {[%clk 0:00:12.2]}
34... f3+ {[%clk 0:00:22.9]} 0-1

[Event "*** SCC Grand Prix: Titled Tuesday Blitz"]
[Site "Chess.com"]
[Date "2020.06.23"]
[Round "1"]
[White "Squirlolz"]
[Black "m-garcett"]
[Result "1-0"]
[WhiteElo "2503"]
[BlackElo "2057"]
[TimeControl "180+1"]
[EndTime "10:07:02 PDT"]
[Termination "Squirlolz won by resignation"]

1. b3 {[%clk 0:02:59.4]} 1... e5 {[%clk 0:02:55]} 2. Bb2 {[%clk 0:03:00.3]} 2...
Nc6 {[%clk 0:02:53.3]} 3. e3 {[%clk 0:02:59]} 3... d6 {[%clk 0:02:53]} 4. f4
{[%clk 0:02:56.4]} 4... g6 {[%clk 0:02:50.9]} 5. Nf3 {[%clk 0:02:55.5]} 5... Bg7
{[%clk 0:02:50.2]} 6. Bb5 {[%clk 0:02:55.8]} 6... f6 {[%clk 0:02:39.3]} 7. O-O
{[%clk 0:02:52.3]} 7... Ne7 {[%clk 0:02:36.2]} 8. d4 {[%clk 0:02:49.5]} 8...
exf4 {[%clk 0:02:29.4]} 9. exf4 {[%clk 0:02:37.5]} 9... d5 {[%clk 0:02:21.3]}
10. Bxc6+ {[%clk 0:02:26.3]} 10... Nxc6 {[%clk 0:02:16.7]} 11. Re1+ {[%clk
0:02:24.2]} 11... Kf7 {[%clk 0:02:16.1]} 12. Nbd2 {[%clk 0:02:20.8]} 12... Bf5
{[%clk 0:02:11.1]} 13. Nh4 {[%clk 0:02:17.8]} 13... Qd7 {[%clk 0:02:02.5]} 14.
Nxf5 {[%clk 0:02:12.6]} 14... Qxf5 {[%clk 0:02:03.4]} 15. Qf3 {[%clk 0:02:12.5]}
15... Rhe8 {[%clk 0:01:58.1]} 16. g4 {[%clk 0:02:03.6]} 16... Qd7 {[%clk
0:01:16.1]} 17. f5 {[%clk 0:02:02.6]} 17... g5 {[%clk 0:01:08.6]} 18. Nf1 {[%clk
0:01:51.6]} 18... Rxe1 {[%clk 0:00:59.5]} 19. Rxe1 {[%clk 0:01:52.5]} 19... Nb4
{[%clk 0:00:39.9]} 20. Ba3 {[%clk 0:01:08.2]} 20... Bf8 {[%clk 0:00:20.7]} 21.
Ne3 {[%clk 0:01:05.6]} 21... Nxa2 {[%clk 0:00:17.4]} 22. Bxf8 {[%clk 0:00:56.7]}
22... Rxf8 {[%clk 0:00:18.3]} 23. Qxd5+ {[%clk 0:00:34.6]} 23... Qxd5 {[%clk
0:00:16.5]} 24. Nxd5 {[%clk 0:00:35.5]} 24... c6 {[%clk 0:00:16.7]} 25. Re7+
{[%clk 0:00:32]} 25... Kg8 {[%clk 0:00:16.8]} 26. Nc7 {[%clk 0:00:30.2]} 26...
Nb4 {[%clk 0:00:16]} 27. Ne6 {[%clk 0:00:28.3]} 27... Rc8 {[%clk 0:00:15.4]} 28.
c3 {[%clk 0:00:16.5]} 28... Nd5 {[%clk 0:00:15.1]} 29. Rg7+ {[%clk 0:00:15.5]}
29... Kh8 {[%clk 0:00:14.7]} 30. c4 {[%clk 0:00:15]} 30... Nf4 {[%clk
0:00:13.7]} 31. Rxb7 {[%clk 0:00:13.6]} 31... Nxe6 {[%clk 0:00:12.9]} 32. fxe6
{[%clk 0:00:13.4]} 32... Re8 {[%clk 0:00:12.7]} 33. d5 {[%clk 0:00:13.7]} 33...
cxd5 {[%clk 0:00:13.6]} 34. cxd5 {[%clk 0:00:14.6]} 34... Rd8 {[%clk 0:00:13.9]}
35. e7 {[%clk 0:00:14.1]} 1-0

[Event "*** SCC Grand Prix: Titled Tuesday Blitz"]
[Site "Chess.com"]
[Date "2020.06.23"]
[Round "1"]
[White "Bayernbk"]
[Black "SergeyKarjakin"]
[Result "0-1"]
[WhiteElo "2456"]
[BlackElo "2958"]
[TimeControl "180+1"]
[EndTime "10:07:04 PDT"]
[Termination "SergeyKarjakin won by checkmate"]

1. e4 {[%clk 0:02:56.8]} 1... c6 {[%clk 0:02:54.5]} 2. Nf3 {[%clk 0:02:56.3]}
2... d5 {[%clk 0:02:55.4]} 3. exd5 {[%clk 0:02:57]} 3... cxd5 {[%clk 0:02:55.3]}
4. Ne5 {[%clk 0:02:57.6]} 4... Nf6 {[%clk 0:02:51]} 5. d4 {[%clk 0:02:57.7]}
5... g6 {[%clk 0:02:45.7]} 6. c3 {[%clk 0:02:56.6]} 6... Bg7 {[%clk 0:02:45.5]}
7. Bd3 {[%clk 0:02:56.7]} 7... O-O {[%clk 0:02:44.6]} 8. Nd2 {[%clk 0:02:57.3]}
8... Nbd7 {[%clk 0:02:39.2]} 9. Qe2 {[%clk 0:02:57.1]} 9... Ne8 {[%clk
0:02:36.2]} 10. O-O {[%clk 0:02:55.5]} 10... Nd6 {[%clk 0:02:36]} 11. Re1 {[%clk
0:02:50.6]} 11... Nf6 {[%clk 0:02:34.2]} 12. Ndf3 {[%clk 0:02:43.1]} 12... Bf5
{[%clk 0:02:31.1]} 13. Bf4 {[%clk 0:02:36.4]} 13... Bxd3 {[%clk 0:02:23.3]} 14.
Nxd3 {[%clk 0:02:37.3]} 14... e6 {[%clk 0:02:21.5]} 15. Nc5 {[%clk 0:02:30.9]}
15... b6 {[%clk 0:02:15.3]} 16. Na6 {[%clk 0:02:22.8]} 16... Rc8 {[%clk
0:02:09.9]} 17. a4 {[%clk 0:02:19.6]} 17... Nc4 {[%clk 0:02:06.9]} 18. Ne5
{[%clk 0:02:14.9]} 18... h5 {[%clk 0:01:53.9]} 19. h3 {[%clk 0:02:12.4]} 19...
Re8 {[%clk 0:01:52.1]} 20. Rec1 {[%clk 0:02:02.6]} 20... Ne4 {[%clk 0:01:46.9]}
21. f3 {[%clk 0:01:52.1]} 21... Ned6 {[%clk 0:01:39.6]} 22. b3 {[%clk 0:01:47]}
22... Nxe5 {[%clk 0:01:34.5]} 23. Bxe5 {[%clk 0:01:47]} 23... Bh6 {[%clk
0:01:24.2]} 24. Rc2 {[%clk 0:01:46.9]} 24... Nf5 {[%clk 0:01:24.2]} 25. a5
{[%clk 0:01:38.1]} 25... Be3+ {[%clk 0:01:15.9]} 26. Kh2 {[%clk 0:01:26.5]}
26... Qg5 {[%clk 0:01:14]} 27. axb6 {[%clk 0:01:03.4]} 27... f6 {[%clk
0:01:10.4]} 28. g4 {[%clk 0:00:51.1]} 28... fxe5 {[%clk 0:00:55]} 29. gxf5
{[%clk 0:00:50.7]} 29... axb6 {[%clk 0:00:55.5]} 30. fxg6 {[%clk 0:00:41.6]}
30... exd4 {[%clk 0:00:52.6]} 31. cxd4 {[%clk 0:00:36.7]} 31... Rxc2 {[%clk
0:00:44.4]} 32. Qxc2 {[%clk 0:00:37.6]} 32... Bxd4 {[%clk 0:00:44.9]} 33. Re1
{[%clk 0:00:30.7]} 33... Qf4+ {[%clk 0:00:41.9]} 34. Kg2 {[%clk 0:00:27.7]}
34... Be5 {[%clk 0:00:38.6]} 35. Qf2 {[%clk 0:00:18.2]} 35... Qh2+ {[%clk
0:00:34.6]} 36. Kf1 {[%clk 0:00:18.6]} 36... Qxh3+ {[%clk 0:00:35.5]} 37. Ke2
{[%clk 0:00:16.6]} 37... Rc8 {[%clk 0:00:31.2]} 38. Qxb6 {[%clk 0:00:12.5]}
38... Qg2+ {[%clk 0:00:30.4]} 39. Kd1 {[%clk 0:00:08.2]} 39... Qc2# {[%clk
0:00:29.4]} 0-1

[Event "*** SCC Grand Prix: Titled Tuesday Blitz"]
[Site "Chess.com"]
[Date "2020.06.23"]
[Round "1"]
[White "K-Nygren"]
[Black "politeplayer"]
[Result "1-0"]
[WhiteElo "2541"]
[BlackElo "2167"]
[TimeControl "180+1"]
[EndTime "10:07:04 PDT"]
[Termination "K-Nygren won by checkmate"]

1. e4 {[%clk 0:03:00.5]} 1... c5 {[%clk 0:02:59.5]} 2. Nf3 {[%clk 0:03:00.3]}
2... e6 {[%clk 0:02:59.8]} 3. d4 {[%clk 0:02:59.5]} 3... cxd4 {[%clk 0:02:59.8]}
4. Nxd4 {[%clk 0:02:59.3]} 4... Nc6 {[%clk 0:03:00.4]} 5. Nxc6 {[%clk
0:02:58.8]} 5... bxc6 {[%clk 0:02:59.6]} 6. Nd2 {[%clk 0:02:58.3]} 6... d5
{[%clk 0:02:58.3]} 7. Bd3 {[%clk 0:02:58]} 7... Nf6 {[%clk 0:02:55.4]} 8. Qe2
{[%clk 0:02:57.6]} 8... Be7 {[%clk 0:02:44.9]} 9. O-O {[%clk 0:02:55.7]} 9...
O-O {[%clk 0:02:40.6]} 10. Rd1 {[%clk 0:02:51.5]} 10... Qc7 {[%clk 0:02:33.9]}
11. e5 {[%clk 0:02:47.3]} 11... Nd7 {[%clk 0:02:32.6]} 12. f4 {[%clk 0:02:42.1]}
12... Nc5 {[%clk 0:02:06.4]} 13. Nf1 {[%clk 0:02:29.7]} 13... a5 {[%clk
0:02:02.9]} 14. Ng3 {[%clk 0:02:22.8]} 14... Nxd3 {[%clk 0:02:01.2]} 15. cxd3
{[%clk 0:02:14.3]} 15... f5 {[%clk 0:01:55.5]} 16. Be3 {[%clk 0:02:05.4]} 16...
c5 {[%clk 0:01:53.1]} 17. Rac1 {[%clk 0:02:03.5]} 17... Ba6 {[%clk 0:01:29]} 18.
Qf2 {[%clk 0:02:02]} 18... Rac8 {[%clk 0:01:19]} 19. Ne2 {[%clk 0:01:41.7]}
19... Qb7 {[%clk 0:01:07.5]} 20. Bxc5 {[%clk 0:01:34.4]} 20... Bxc5 {[%clk
0:01:06.1]} 21. Rxc5 {[%clk 0:01:33.9]} 21... Rxc5 {[%clk 0:01:06.3]} 22. Qxc5
{[%clk 0:01:33.4]} 22... Qxb2 {[%clk 0:01:06.4]} 23. Nd4 {[%clk 0:01:24]} 23...
Bc8 {[%clk 0:00:46]} 24. Nc6 {[%clk 0:01:14.7]} 24... Qe2 {[%clk 0:00:38]} 25.
Rf1 {[%clk 0:01:00.6]} 25... Ba6 {[%clk 0:00:33.1]} 26. Ne7+ {[%clk 0:00:53]}
26... Kf7 {[%clk 0:00:32.6]} 27. Qc7 {[%clk 0:00:43]} 27... Bxd3 {[%clk
0:00:22]} 28. Nxf5+ {[%clk 0:00:27.2]} 28... Kg6 {[%clk 0:00:21.5]} 29. Qxg7+
{[%clk 0:00:12.5]} 29... Kxf5 {[%clk 0:00:21.5]} 30. Qxh7+ {[%clk 0:00:09.8]}
30... Kg4 {[%clk 0:00:21.6]} 31. Qh3# {[%clk 0:00:09]} 1-0